bitfinex-derivatives/quotes_BTCF0:USTF0_20210705
["timestamp","ask_amount","ask_price","bid_price","bid_amount"]
[1625479229071,4.76506088,34267.0,34266.0,0.60075668]
[1625479229471,4.70606088,34267.0,34266.0,0.60075668]
[1625479230071,4.70606088,34267.0,34266.0,0.60504322]
[1625479230272,4.76506088,34267.0,34266.0,0.60504322]
[1625479230622,4.70276088,34267.0,34266.0,0.60504322]
[1625479230826,4.96054221,34267.0,34266.0,0.00428654]
[1625479231223,4.96054221,34267.0,34265.0,0.00428691]
[1625479231323,4.96054221,34267.0,34266.0,0.059]
[1625479231523,4.96054221,34267.0,34265.0,0.00428691]
[1625479231623,4.90154221,34267.0,34265.0,0.00428691]
[1625479231723,4.96054221,34267.0,34263.0,0.84087517]
[1625479231873,4.96054221,34267.0,34263.0,0.89987517]
[1625479232025,4.96054221,34267.0,34264.0,0.00428692]
[1625479232726,0.24057544,34265.0,34264.0,0.00428692]
[1625479232928,0.29957544,34265.0,34264.0,0.00428692]
[1625479233181,0.24057544,34265.0,34264.0,0.00428692]
[1625479233581,0.24057544,34265.0,34264.0,0.06328692]
[1625479234581,0.24057544,34265.0,34264.0,0.14895937]
[1625479235083,0.24057544,34265.0,34264.0,0.32028251]
[1625479235584,0.24057544,34265.0,34264.0,0.14895937]
[1625479235985,0.24057544,34265.0,34264.0,0.32018619]
[1625479236989,0.24057544,34265.0,34264.0,0.66253265]
[1625479237539,0.24057544,34265.0,34264.0,0.32018619]
[1625479238142,0.24057544,34265.0,34264.0,0.66237512]
[1625479238693,0.24057544,34265.0,34264.0,0.32018619]
[1625479239147,0.24057544,34265.0,34264.0,0.66237072]
[1625479239647,0.24057544,34265.0,34264.0,0.32018619]
[1625479240446,0.24057544,34265.0,34264.0,0.31589927]
[1625479240698,0.24057544,34265.0,34264.0,0.32018604]
[1625479241049,0.24057544,34265.0,34264.0,0.66229357]
[1625479241601,0.24057544,34265.0,34264.0,0.57662112]
[1625479242704,0.24057544,34265.0,34264.0,0.57634951]
[1625479243858,0.24057544,34265.0,34264.0,1.60227184]
[1625479246923,3.981,34267.0,34264.0,1.60227184]
[1625479247118,4.04,34267.0,34264.0,1.60227184]
[1625479247219,4.04,34267.0,34265.0,0.00428631]
[1625479247418,0.48115088,34266.0,34265.0,0.06328631]
[1625479247517,0.54015088,34266.0,34265.0,0.06328631]
[1625479247668,0.54015088,34266.0,34265.0,1.08986045]
[1625479248021,0.54015088,34266.0,34265.0,1.6031511]
[1625479248270,0.54215088,34266.0,34265.0,1.6031511]
[1625479248422,0.48315088,34266.0,34265.0,1.6031511]
[1625479249126,0.48315088,34266.0,34265.0,0.57657696]
[1625479249728,0.48315088,34266.0,34265.0,1.60382803]
[1625479250077,0.54215088,34266.0,34265.0,1.60382803]
[1625479250327,0.54215088,34266.0,34265.0,0.57657696]
[1625479252735,0.48315088,34266.0,34265.0,0.57657696]
[1625479254038,0.48315088,34266.0,34265.0,1.60382288]
[1625479255339,0.48315088,34266.0,34265.0,2.80169271]
[1625479256789,0.48315088,34266.0,34265.0,3.08569271]
[1625479256891,0.24257544,34266.0,34265.0,3.08569271]
[1625479256990,0.24257544,34266.0,34265.0,3.14469271]
[1625479257091,0.24257544,34266.0,34265.0,3.15334506]
[1625479257291,0.24057544,34267.0,34265.0,4.52122428]
[1625479257292,0.002,34267.0,34265.0,4.52122428]
[1625479257390,0.002,34267.0,34265.0,9.10852428]
[1625479257590,0.002,34267.0,34266.0,0.25351055]
[1625479257790,0.002,34267.0,34266.0,6.01314092]
[1625479259494,0.002,34267.0,34266.0,6.01506141]
[1625479260595,0.002,34267.0,34266.0,6.02371291]
[1625479262097,0.004,34269.0,34266.0,6.02371291]
[1625479262397,0.004,34269.0,34267.0,0.00428138]
[1625479262496,0.004,34269.0,34267.0,0.12228138]
[1625479262849,0.004,34269.0,34268.0,5.64385129]
[1625479262950,0.004,34269.0,34268.0,5.64813267]
[1625479263048,0.004,34269.0,34268.0,5.76613267]
[1625479263149,0.004,34269.0,34268.0,5.7767084]
[1625479263299,0.004,34269.0,34268.0,5.7747084]
[1625479263800,0.004,34269.0,34268.0,5.76413267]
[1625479265654,0.24457544,34269.0,34268.0,5.76413267]
[1625479266362,0.24057544,34269.0,34268.0,5.76413267]
[1625479269317,5.30177544,34269.0,34268.0,5.76413267]
[1625479280243,5.0612,34269.0,34268.0,5.76413267]
[1625479280693,5.30177544,34269.0,34268.0,6.24528355]
[1625479283495,5.30177544,34269.0,34268.0,6.25393628]
[1625479285050,5.30177544,34269.0,34268.0,6.45762291]
[1625479285051,5.0612,34269.0,34268.0,6.45762291]
[1625479285554,5.30177544,34269.0,34268.0,6.93877379]
[1625479291668,5.0612,34269.0,34268.0,6.45762291]
[1625479292223,5.30177544,34269.0,34268.0,6.93877379]
[1625479302501,5.0612,34269.0,34268.0,6.45762291]
[1625479303051,5.30177544,34269.0,34268.0,6.93877379]
[1625479304609,5.38825625,34269.0,34268.0,6.93877379]
[1625479305760,5.56106665,34269.0,34268.0,6.93877379]
[1625479306009,5.32049121,34269.0,34268.0,6.45762291]
[1625479306764,5.0612,34269.0,34268.0,6.45762291]
[1625479307061,5.30177544,34269.0,34268.0,6.93877379]
[1625479311218,5.3883329,34269.0,34268.0,6.93877379]
[1625479311319,5.3883329,34269.0,34268.0,6.94939043]
[1625479313225,5.30177544,34269.0,34268.0,6.94939043]
[1625479313576,5.30177544,34269.0,34268.0,8.66757586]
[1625479314730,5.0612,34269.0,34268.0,8.18642498]
[1625479315331,5.30177544,34269.0,34268.0,8.66757586]
[1625479315531,5.38841498,34269.0,34268.0,8.66757586]
[1625479315632,5.56152112,34269.0,34268.0,8.66757586]
[1625479315932,5.38841498,34269.0,34268.0,8.66757586]
[1625479317137,5.30177544,34269.0,34268.0,8.66757586]
[1625479318537,5.0612,34269.0,34268.0,8.18642498]
[1625479319391,5.30177544,34269.0,34268.0,8.66757586]
[1625479323998,5.30177544,34269.0,34268.0,8.65464175]
[1625479324250,5.30177544,34269.0,34268.0,8.6675761]
[1625479324999,5.0612,34269.0,34268.0,8.18642522]
[1625479325853,5.30177544,34269.0,34268.0,8.6675761]
[1625479327307,5.38841369,34269.0,34268.0,8.6675761]
[1625479327909,5.56152037,34269.0,34268.0,8.6675761]
[1625479329110,5.38841369,34269.0,34268.0,8.6675761]
[1625479329762,5.30177544,34269.0,34268.0,8.6675761]
[1625479330263,5.0612,34269.0,34268.0,8.18642522]
[1625479331968,5.30177544,34269.0,34268.0,8.6675761]
[1625479334170,5.0612,34269.0,34268.0,8.18642522]
[1625479334674,5.30177544,34269.0,34268.0,8.6675761]
[1625479335672,5.0612,34269.0,34268.0,8.18642522]
[1625479336773,5.0612,34269.0,34268.0,8.6675761]
[1625479336873,5.30177544,34269.0,34268.0,8.6675761]
[1625479337825,5.0612,34269.0,34268.0,8.18642522]
[1625479338878,5.30177544,34269.0,34268.0,8.6675761]
[1625479339528,5.0612,34269.0,34268.0,8.18642522]
[1625479340933,5.30177544,34269.0,34268.0,8.6675761]
[1625479342889,5.3884057,34269.0,34268.0,8.6675761]
[1625479345041,5.14783026,34269.0,34268.0,8.18642522]
[1625479346091,5.0612,34269.0,34268.0,8.18642522]
[1625479346591,5.30177544,34269.0,34268.0,8.6675761]
[1625479346693,5.38840523,34269.0,34268.0,8.6675761]
[1625479347547,5.14782979,34269.0,34268.0,8.18642522]
[1625479348598,5.38840523,34269.0,34268.0,8.6675761]
[1625479348949,5.56149569,34269.0,34268.0,8.6675761]
[1625479349250,5.32092025,34269.0,34268.0,8.18642522]
[1625479350601,5.56149569,34269.0,34268.0,8.6675761]
[1625479351302,5.56149569,34269.0,34268.0,9.0071861]
[1625479351402,0.50029569,34269.0,34268.0,9.0071861]
[1625479351607,0.25972025,34269.0,34268.0,9.0071861]
[1625479351855,0.08662979,34269.0,34268.0,9.0071861]
[1625479351970,0.60772132,34270.0,34268.0,9.0071861]
[1625479352253,0.60772132,34270.0,34269.0,0.01060052]
[1625479352354,0.60772132,34270.0,34269.0,0.12860052]
[1625479352454,0.54872132,34270.0,34269.0,0.02353279]
[1625479352707,0.54872132,34270.0,34269.0,0.34041007]
[1625479352807,0.54872132,34270.0,34269.0,0.42871007]
[1625479353307,0.55072132,34270.0,34269.0,0.42871007]
[1625479353609,0.55072132,34270.0,34269.0,0.41140823]
[1625479354312,0.002,34270.0,34269.0,10.53384179]
[1625479355062,0.0018,34272.0,34269.0,10.53384179]
[1625479355165,0.0018,34272.0,34269.0,10.59284179]
[1625479355264,0.0018,34272.0,34270.0,0.01058014]
[1625479355368,0.0018,34272.0,34270.0,0.12858014]
[1625479355464,0.0018,34272.0,34270.0,0.14151252]
[1625479355565,0.01,34278.0,34271.0,2.5793417]
[1625479355681,0.49986197,34285.0,34275.0,0.059]
[1625479355779,0.25928653,34285.0,34276.0,0.0866]
[1625479355865,0.25928653,34285.0,34282.0,3.8421]
[1625479355964,0.25928653,34285.0,34282.0,4.13406]
[1625479356074,0.17280014,34285.0,34284.0,4.10100237]
[1625479356166,0.25903266,34290.0,34284.0,6.38137865]
[1625479356265,0.25903266,34290.0,34285.0,0.01055618]
[1625479356367,0.25903266,34290.0,34285.0,0.06955618]
[1625479356465,0.25903266,34290.0,34289.0,3.8507]
[1625479356566,0.25903266,34290.0,34289.0,4.30125]
[1625479356666,0.25901416,34291.0,34289.0,10.62473189]
[1625479356766,0.25901416,34291.0,34289.0,11.34645821]
[1625479356866,0.25901416,34291.0,34289.0,11.35074005]
[1625479357066,0.25901416,34291.0,34290.0,0.00428184]
[1625479357165,0.25901416,34291.0,34290.0,0.22228184]
[1625479357415,0.25901416,34291.0,34290.0,6.54727681]
[1625479358019,0.08639554,34291.0,34290.0,6.54727681]
[1625479358569,0.24057544,34292.0,34290.0,6.54727681]
[1625479358918,0.24057544,34292.0,34291.0,0.00428281]
[1625479359018,0.24057544,34292.0,34291.0,0.06328281]
[1625479359218,0.24057544,34292.0,34291.0,0.12228281]
[1625479359320,0.24057544,34292.0,34291.0,4.89962992]
[1625479359622,0.24057544,34292.0,34291.0,4.99962992]
[1625479359720,1.17809048,34295.0,34291.0,4.99962992]
[1625479359821,1.17809048,34295.0,34291.0,6.53615768]
[1625479360024,1.17809048,34295.0,34292.0,0.00428277]
[1625479360121,1.17809048,34295.0,34292.0,0.06328277]
[1625479360221,0.25869048,34295.0,34292.0,0.06328277]
[1625479360525,0.4990127,34296.0,34294.0,3.41124218]
[1625479360722,0.4990127,34296.0,34294.0,3.47024218]
[1625479360924,0.4990127,34296.0,34295.0,0.34057544]
[1625479361174,0.4990127,34296.0,34295.0,3.87198624]
[1625479361373,0.4990127,34296.0,34295.0,3.87626887]
[1625479361575,0.4990127,34296.0,34295.0,3.87198624]
[1625479361876,0.24057544,34296.0,34295.0,3.87198624]
[1625479366786,0.059,34300.0,34295.0,3.87198624]
[1625479366886,0.002,34300.0,34295.0,3.87198624]
[1625479366987,0.002,34300.0,34299.0,0.24057544]
[1625479367086,0.002,34300.0,34299.0,0.61235544]
[1625479367187,0.002,34300.0,34299.0,1.12287796]
[1625479367939,0.002,34300.0,34299.0,1.22287796]
[1625479368189,0.002,34300.0,34299.0,0.96749101]
[1625479370545,0.002,34300.0,34299.0,0.79740063]
[1625479372300,0.002,34300.0,34299.0,0.71235544]
[1625479375113,0.002,34300.0,34299.0,0.88216916]
[1625479375758,0.002,34300.0,34299.0,0.71235544]
[1625479375858,0.002,34300.0,34299.0,1.22173255]
[1625479376210,0.002,34300.0,34299.0,6.27413255]
[1625479376429,0.002,34300.0,34299.0,6.33313255]
[1625479376516,0.002,34300.0,34299.0,6.33741199]
[1625479377015,0.002,34300.0,34299.0,10.5768587]
[1625479377266,0.002,34304.0,34299.0,10.81743414]
[1625479377517,0.002,34304.0,34301.0,2.20516386]
[1625479377620,0.002,34304.0,34301.0,2.32316386]
[1625479378017,0.002,34304.0,34303.0,0.16959296]
[1625479378119,0.002,34304.0,34303.0,0.22859296]
[1625479378219,0.002,34304.0,34303.0,0.28759296]
[1625479378518,0.002,34304.0,34303.0,0.31340493]
[1625479378619,0.002,34304.0,34303.0,0.31768199]
[1625479378719,0.002,34304.0,34303.0,0.47668199]
[1625479379271,0.002,34304.0,34303.0,0.71725743]
[1625479379371,0.002,34304.0,34303.0,0.65825743]
[1625479379472,0.002,34304.0,34303.0,0.65398037]
[1625479379670,0.002,34304.0,34303.0,0.65825745]
[1625479379922,0.002,34304.0,34303.0,0.48866449]
[1625479380572,0.002,34304.0,34303.0,0.65823008]
[1625479381072,0.002,34304.0,34303.0,0.40385252]
[1625479383328,0.24257544,34304.0,34303.0,0.40385252]
[1625479383428,0.56407544,34304.0,34303.0,0.40385252]
[1625479386283,0.56207544,34304.0,34303.0,0.40385252]
[1625479390941,0.56207544,34304.0,34303.0,0.34485252]
[1625479392947,0.64780895,34304.0,34303.0,0.34485252]
[1625479393947,0.81912747,34304.0,34303.0,0.34485252]
[1625479395801,0.73339396,34304.0,34303.0,0.34485252]
[1625479396455,0.49281852,34304.0,34303.0,0.10427708]
[1625479397405,0.83533048,34304.0,34303.0,0.34485252]
[1625479397505,1.07590592,34304.0,34303.0,0.34485252]
[1625479398561,1.13490592,34304.0,34303.0,0.34485252]
[1625479398912,1.82023463,34304.0,34303.0,0.34485252]
[1625479400213,2.84846396,34304.0,34303.0,0.34485252]
[1625479401163,1.82023463,34304.0,34303.0,0.34485252]
[1625479402266,2.8490262,34304.0,34303.0,0.34485252]
[1625479404227,2.7900262,34304.0,34303.0,0.40385252]
[1625479404585,1.07590592,34304.0,34303.0,0.40385252]
[1625479404677,0.75440592,34304.0,34303.0,0.40385252]
[1625479404878,0.41229946,34304.0,34303.0,0.40385252]
[1625479406027,0.41229946,34304.0,34303.0,0.48886478]
[1625479406529,0.24057544,34304.0,34303.0,0.57381358]
[1625479407030,0.32658312,34304.0,34303.0,0.57381358]
[1625479407429,0.24057544,34304.0,34303.0,1.59328117]
[1625479407530,0.24057544,34304.0,34303.0,1.65228117]
[1625479407930,0.24057544,34304.0,34303.0,2.67226532]
[1625479408836,0.24057544,34304.0,34303.0,5.21982461]
[1625479409636,4.5063,34305.0,34303.0,5.21982461]
[1625479409935,0.08806787,34308.0,34303.0,5.21982461]
[1625479410036,0.002,34308.0,34304.0,0.00427999]
[1625479410339,0.002,34308.0,34304.0,0.06327999]
[1625479410640,0.002,34308.0,34307.0,2.71812784]
[1625479410739,0.002,34308.0,34307.0,3.6934098]
[1625479411040,0.002,34308.0,34307.0,3.7524098]
[1625479411140,0.002,34308.0,34307.0,3.75668963]
[1625479411242,0.002,34308.0,34307.0,3.85668963]
[1625479411693,0.002,34308.0,34307.0,4.09726507]
[1625479412294,0.002,34308.0,34307.0,5.4576864]
[1625479416151,0.002,34308.0,34307.0,6.98944029]
[1625479416255,0.32679989,34310.0,34307.0,10.83754029]
[1625479416503,0.32679989,34310.0,34308.0,0.00427952]
[1625479416604,0.24057544,34310.0,34309.0,4.76432672]
[1625479416803,0.24057544,34310.0,34309.0,4.82332672]
[1625479417054,0.24057544,34310.0,34309.0,4.82760624]
[1625479417256,0.24057544,34310.0,34309.0,4.92760624]
[1625479417808,0.24057544,34310.0,34309.0,5.16818168]
[1625479418716,0.08823569,34312.0,34309.0,5.16818168]
[1625479418811,0.08823569,34312.0,34309.0,5.22718168]
[1625479419111,0.08823569,34312.0,34309.0,5.12718168]
[1625479419214,0.002,34312.0,34311.0,4.75992279]
[1625479419413,0.002,34312.0,34311.0,4.81892279]
[1625479419765,0.002,34312.0,34311.0,4.92320216]
[1625479424774,0.002,34312.0,34311.0,3.56322422]
[1625479425225,0.002,34312.0,34311.0,4.9216462]
[1625479425626,0.002,34312.0,34311.0,3.56322422]
[1625479428280,0.24057544,34313.0,34311.0,3.56322422]
[1625479428445,0.24057544,34313.0,34312.0,3.39553148]
[1625479428632,0.24057544,34313.0,34312.0,3.45453148]
[1625479428732,0.24057544,34313.0,34312.0,3.45881091]
[1625479429336,0.24057544,34313.0,34312.0,3.55881091]
[1625479438408,0.24057544,34313.0,34312.0,3.61781091]
[1625479438507,0.24057544,34313.0,34312.0,3.86339091]
[1625479439963,0.24057544,34315.0,34312.0,3.86339091]
[1625479440262,0.991,34316.0,34314.0,0.24057544]
[1625479440464,0.991,34316.0,34314.0,0.29957544]
[1625479440617,0.002,34316.0,34314.0,0.29957544]
[1625479440717,0.002,34316.0,34315.0,3.38493045]
[1625479440916,0.002,34316.0,34315.0,3.50293045]
[1625479441016,0.002,34316.0,34315.0,3.60293045]
[1625479441222,0.002,34316.0,34315.0,4.95468553]
[1625479441817,0.002,34316.0,34315.0,4.89568553]
[1625479441918,0.002,34316.0,34315.0,4.95468553]
[1625479443772,0.002,34316.0,34315.0,3.60293045]
[1625479444473,0.002,34316.0,34315.0,3.61157143]
[1625479445025,0.002,34316.0,34315.0,4.95410674]
[1625479445277,0.002,34316.0,34315.0,4.96274766]
[1625479445576,0.002,34316.0,34315.0,4.95410674]
[1625479445827,0.002,34316.0,34315.0,4.89510674]
[1625479446427,0.24057544,34319.0,34315.0,4.89510674]
[1625479446828,0.24057544,34319.0,34315.0,3.44393045]
[1625479446928,0.24057544,34319.0,34316.0,0.00428066]
[1625479447131,0.24057544,34319.0,34318.0,0.50692036]
[1625479447329,0.24057544,34319.0,34318.0,0.56592036]
[1625479447429,0.24057544,34319.0,34318.0,0.67020109]
[1625479448131,0.32658068,34319.0,34318.0,0.67020109]
[1625479448280,0.32658068,34319.0,34318.0,0.91077653]
[1625479448681,0.24057544,34319.0,34318.0,0.91077653]
[1625479449132,0.32658231,34319.0,34318.0,0.91077653]
[1625479450736,0.24057544,34319.0,34318.0,0.91077653]
[1625479451188,0.32658674,34319.0,34318.0,0.91077653]
[1625479451687,0.75580033,34319.0,34318.0,0.48823431]
[1625479452238,0.49844056,34319.0,34318.0,0.65692535]
[1625479452639,0.41242829,34319.0,34318.0,0.65692535]
[1625479453146,0.49845491,34319.0,34318.0,0.57254721]
[1625479453541,0.41242829,34319.0,34318.0,0.65690625]
[1625479453992,0.49845723,34319.0,34318.0,0.90997661]
[1625479454392,0.41242829,34319.0,34318.0,0.90997661]
[1625479454492,0.75600156,34319.0,34318.0,0.57264556]
[1625479457501,1.44342558,34319.0,34318.0,0.57264556]
[1625479458001,0.75600156,34319.0,34318.0,0.91040183]
[1625479459107,1.44373885,34319.0,34318.0,0.91040183]
[1625479460858,1.20316341,34319.0,34318.0,0.66982639]
[1625479461010,2.23535077,34319.0,34318.0,1.34596771]
[1625479461362,2.47592621,34319.0,34318.0,1.82711859]
[1625479463164,3.68115873,34319.0,34318.0,2.84196557]
[1625479463465,3.68115873,34319.0,34318.0,1.82711859]
[1625479463767,3.44058329,34319.0,34318.0,1.34596771]
[1625479464267,3.68115873,34319.0,34318.0,1.82711859]
[1625479464367,0.24057544,34319.0,34318.0,0.64443161]
[1625479464872,3.68691721,34319.0,34318.0,2.84500422]
[1625479466526,2.4807665,34319.0,34318.0,4.02954069]
[1625479467227,0.24057544,34319.0,34318.0,0.64443161]
[1625479467681,3.68967326,34319.0,34318.0,4.03153867]
[1625479471439,3.44909782,34319.0,34318.0,3.55038779]
[1625479471639,4.82922925,34319.0,34318.0,3.55038779]
[1625479472041,3.44909782,34319.0,34318.0,3.55038779]
[1625479472342,3.68967326,34319.0,34318.0,4.03153867]
[1625479472845,3.44909782,34319.0,34318.0,3.55038779]
[1625479473996,4.82946649,34319.0,34318.0,3.55038779]
[1625479474347,5.07004193,34319.0,34318.0,4.03153867]
[1625479475751,4.82946649,34319.0,34318.0,3.55038779]
[1625479476501,5.07004193,34319.0,34318.0,4.03153867]
[1625479477053,5.07004193,34319.0,34318.0,3.55038779]
[1625479477054,4.82946649,34319.0,34318.0,3.55038779]
[1625479478604,5.31061737,34319.0,34318.0,3.55038779]
[1625479479105,5.31061737,34319.0,34318.0,1.59408662]
[1625479479206,5.36961737,34319.0,34318.0,1.59408662]
[1625479479305,5.38407547,34319.0,34318.0,1.59408662]
[1625479479407,5.38407547,34319.0,34318.0,1.52419818]
[1625479480563,6.93703513,34319.0,34316.0,0.002]
[1625479481012,4.48664501,34317.0,34316.0,0.002]
[1625479481111,4.69279501,34317.0,34316.0,0.002]
[1625479481210,4.75179501,34317.0,34316.0,0.002]
[1625479481361,4.76626683,34317.0,34316.0,0.00627784]
[1625479482662,5.00684227,34317.0,34316.0,0.00627784]
[1625479482912,5.00684227,34317.0,34316.0,0.002]
[1625479483215,4.99237045,34317.0,34316.0,0.00627782]
[1625479484566,5.00683843,34317.0,34316.0,0.002]
[1625479485067,4.99237045,34317.0,34316.0,0.002]
[1625479488676,4.78622045,34317.0,34316.0,0.00627967]
[1625479488876,4.78622045,34317.0,34316.0,0.002]
[1625479489277,4.78622045,34317.0,34315.0,0.25431232]
[1625479489477,4.78622045,34317.0,34315.0,0.59336455]
[1625479489979,2.93015533,34316.0,34315.0,0.59336455]
[1625479490079,2.98915533,34316.0,34315.0,0.59336455]
[1625479490229,2.98915533,34316.0,34315.0,0.51285742]
[1625479491637,2.98915533,34316.0,34315.0,0.57185742]
[1625479491843,2.98915533,34316.0,34315.0,0.91079346]
[1625479493191,2.98915533,34316.0,34315.0,0.57174123]
[1625479494799,1.61032966,34316.0,34315.0,1.58787514]
[1625479495204,1.61032966,34316.0,34315.0,1.87389514]
[1625479495501,1.55132966,34316.0,34315.0,1.87389514]
[1625479495946,1.55132966,34316.0,34315.0,7.57273312]
[1625479496047,0.86185898,34316.0,34315.0,7.56845344]
[1625479496145,0.86185898,34316.0,34315.0,7.57272934]
[1625479496800,0.25873438,34316.0,34315.0,7.57272934]
[1625479497248,0.08630221,34316.0,34315.0,7.57272934]
[1625479497851,0.25873145,34316.0,34315.0,7.57272934]
[1625479498000,0.25873145,34316.0,34315.0,3.22632934]
[1625479498402,0.08630221,34316.0,34315.0,3.22632934]
[1625479499655,0.84398046,34317.0,34315.0,4.40907074]
[1625479499954,0.84398046,34317.0,34316.0,0.00427576]
[1625479500055,0.84398046,34317.0,34316.0,0.06327576]
[1625479500205,0.75768923,34317.0,34316.0,4.11863605]
[1625479500905,1.10216429,34317.0,34316.0,4.11863605]
[1625479501509,0.8439742,34317.0,34316.0,4.11863605]
[1625479501807,0.75747121,34317.0,34316.0,4.11863605]
[1625479504010,1.10212644,34317.0,34316.0,4.11863605]
[1625479504312,1.10212644,34317.0,34316.0,4.11436029]
[1625479504413,0.75747121,34317.0,34316.0,4.11436029]
[1625479504563,0.75747121,34317.0,34316.0,4.11863652]
[1625479506619,0.75747121,34317.0,34316.0,4.17763652]
[1625479506720,1.10214409,34317.0,34316.0,4.17763652]
[1625479507273,0.24057544,34317.0,34316.0,5.69717643]
[1625479521110,0.24057544,34317.0,34316.0,4.17763652]
[1625479521517,0.24057544,34317.0,34316.0,5.69539284]
[1625479524969,0.24057544,34317.0,34316.0,5.70403305]
[1625479535250,0.24057544,34317.0,34316.0,4.18627673]
[1625479536902,0.24057544,34317.0,34316.0,5.70195481]
[1625479537606,0.24057544,34317.0,34316.0,5.80195481]
[1625479539660,0.24057544,34317.0,34316.0,6.47525965]
[1625479548883,0.24057544,34317.0,34316.0,6.41625965]
[1625479550086,0.24057544,34317.0,34316.0,1.68759452]
[1625479550433,0.24057544,34317.0,34316.0,6.41974507]
[1625479554345,0.49975321,34317.0,34316.0,6.41974507]
[1625479555948,0.49975321,34317.0,34316.0,6.68685507]
[1625479557702,0.84510055,34317.0,34316.0,6.68685507]
[1625479559305,0.84510055,34317.0,34316.0,6.69732518]
[1625479559455,0.84510055,34317.0,34316.0,6.68685507]
[1625479560057,0.84510055,34317.0,34316.0,6.69732746]
[1625479560758,0.75865044,34317.0,34316.0,6.69732746]
[1625479562713,0.518075,34317.0,34316.0,6.75632746]
[1625479562929,0.69075479,34319.0,34316.0,6.69732746]
[1625479563123,3.38e-06,34320.0,34318.0,0.48115088]
[1625479563219,0.59082817,34323.0,34318.0,0.59915088]
[1625479563365,0.59082817,34323.0,34319.0,0.00863903]
[1625479563466,0.59082817,34323.0,34319.0,0.08234695]
[1625479563565,0.59082817,34323.0,34319.0,0.14134695]
[1625479563665,1.55397032,34326.0,34319.0,0.14134695]
[1625479563867,0.08648866,34321.0,34320.0,0.01042949]
[1625479563966,0.08648866,34321.0,34320.0,0.0233402]
[1625479564066,0.08648866,34321.0,34320.0,0.1413402]
[1625479564366,0.002,34322.0,34320.0,5.38354994]
[1625479564720,0.002,34322.0,34321.0,0.02333701]
[1625479564817,0.002,34322.0,34321.0,0.18233701]
[1625479564918,0.002,34322.0,34321.0,0.24133701]
[1625479565069,0.002,34322.0,34321.0,1.93161121]
[1625479565173,0.004,34324.0,34321.0,3.69343343]
[1625479565269,0.004,34324.0,34322.0,0.0104261]
[1625479565371,0.004,34324.0,34322.0,0.1284261]
[1625479565569,0.004,34324.0,34323.0,0.01042606]
[1625479565669,0.004,34324.0,34323.0,0.29351606]
[1625479565770,0.004,34324.0,34323.0,3.51778299]
[1625479566170,0.004,34324.0,34323.0,3.61778299]
[1625479566521,0.004,34324.0,34323.0,3.60914456]
[1625479567124,0.004,34324.0,34323.0,3.84972]
[1625479567275,0.08647627,34328.0,34323.0,3.84772]
[1625479567627,0.08647627,34328.0,34324.0,0.00427166]
[1625479567727,0.057,34331.0,34324.0,0.00427166]
[1625479567728,0.08638243,34329.0,34324.0,0.00427166]
[1625479567826,0.08638243,34329.0,34324.0,0.06327166]
[1625479568176,0.08638243,34329.0,34325.0,0.00427166]
[1625479568275,0.08638243,34329.0,34328.0,1.52041653]
[1625479568376,0.08638243,34329.0,34328.0,1.62041653]
[1625479568477,0.08638243,34329.0,34328.0,1.67941653]
[1625479569128,0.08638243,34329.0,34328.0,2.16056741]
[1625479569427,0.08634807,34330.0,34328.0,2.16056741]
[1625479569927,0.08634807,34330.0,34329.0,1.52110146]
[1625479570680,0.08634807,34330.0,34329.0,1.62110146]
[1625479570879,0.057,34334.0,34329.0,0.1]
[1625479570978,0.9166,34336.0,34329.0,0.1]
[1625479571279,0.9166,34336.0,34328.0,2.00237973]
[1625479571379,0.9736,34336.0,34328.0,2.06137973]
[1625479571632,0.9736,34336.0,34329.0,0.00427185]
[1625479571730,0.9166,34336.0,34329.0,0.00427185]
[1625479572332,0.29957544,34335.0,34329.0,0.00427185]
[1625479572432,0.24057544,34335.0,34329.0,0.00427185]
[1625479572634,0.24057544,34335.0,34329.0,1.5249461]
[1625479572732,0.29957544,34335.0,34329.0,1.5249461]
[1625479572885,0.29957544,34335.0,34329.0,0.00427185]
[1625479572982,0.29957544,34335.0,34330.0,0.00427173]
[1625479573132,0.29957544,34335.0,34334.0,0.24057544]
[1625479573534,0.29957544,34335.0,34334.0,0.24484717]
[1625479573684,0.24057544,34335.0,34334.0,0.24484717]
[1625479574034,0.29957544,34335.0,34334.0,0.24484717]
[1625479574134,0.24057544,34335.0,34334.0,0.24484717]
[1625479574435,0.29957544,34335.0,34334.0,0.24484717]
[1625479574535,0.24057544,34335.0,34334.0,0.24484717]
[1625479574636,0.29957544,34335.0,34334.0,0.24484717]
[1625479574888,0.24057544,34335.0,34334.0,0.24484717]
[1625479575089,0.29957544,34335.0,34334.0,0.24484717]
[1625479575191,0.24057544,34335.0,34334.0,0.24484717]
[1625479575345,0.29957544,34335.0,34334.0,0.24484717]
[1625479576298,0.29957544,34335.0,34334.0,0.24684717]
[1625479576397,0.29957544,34335.0,34334.0,0.00627173]
[1625479577047,0.29957544,34335.0,34334.0,0.002]
[1625479577147,0.54015088,34335.0,34334.0,0.002]
[1625479578398,0.83674088,34335.0,34334.0,0.002]
[1625479579249,0.83674088,34335.0,34334.0,0.00627197]
[1625479579350,2.21452778,34335.0,34334.0,0.00627197]
[1625479579449,2.21452778,34335.0,34334.0,0.002]
[1625479579700,2.21452778,34335.0,34334.0,0.00627189]
[1625479579901,0.83674088,34335.0,34334.0,0.00627189]
[1625479580002,0.54015088,34335.0,34334.0,0.00627189]
[1625479580604,0.54015088,34335.0,34334.0,0.002]
[1625479580902,0.54015088,34335.0,34334.0,0.00627185]
[1625479582407,0.48115088,34335.0,34334.0,0.00627185]
[1625479582508,0.48115088,34335.0,34334.0,0.27045185]
[1625479583058,0.48115088,34335.0,34334.0,0.32945185]
[1625479583461,0.48115088,34335.0,34334.0,1.51232862]
[1625479583909,0.48115088,34335.0,34334.0,2.86376203]
[1625479584813,0.48115088,34335.0,34334.0,1.51232862]
[1625479585315,0.48115088,34335.0,34334.0,2.86283133]
[1625479585821,0.48115088,34335.0,34334.0,1.51232862]
[1625479587418,0.48115088,34335.0,34334.0,0.32945185]
[1625479588020,0.48115088,34335.0,34334.0,1.50966125]
[1625479588118,0.48115088,34335.0,34334.0,2.85847199]
[1625479589220,0.48115088,34335.0,34334.0,1.50966125]
[1625479589821,0.48115088,34335.0,34334.0,2.85809814]
[1625479593530,0.48115088,34335.0,34334.0,3.86838668]
[1625479595233,0.48115088,34335.0,34334.0,4.10896212]
[1625479597337,0.48115088,34335.0,34334.0,4.16796212]
[1625479597738,0.48115088,34335.0,34334.0,4.10896212]
[1625479598190,0.74292088,34335.0,34334.0,3.86838668]
[1625479598289,0.80192088,34335.0,34334.0,3.54520668]
[1625479598843,0.80192088,34335.0,34334.0,1.01656039]
[1625479601348,0.74292088,34335.0,34334.0,1.01656039]